bitfinex/quotes_ETHUSD_20220113
["timestamp","ask_amount","ask_price","bid_price","bid_amount"]
[1642102977821,0.016515,3251.3,3251.2,0.00568424]
[1642102978020,0.016515,3251.3,3251.1,0.00625266]
[1642102978221,0.123,3251.2,3251.1,0.00625266]
[1642102978520,0.123,3251.2,3250.2,0.01136847]
[1642102978723,0.013746,3251.0,3250.2,0.01136847]
[1642102978920,0.013746,3251.0,3250.4,1.22122959]
[1642102978921,1.51747225,3250.9,3250.4,1.22122959]
[1642102979120,0.013746,3251.0,3250.4,1.22122959]
[1642102979320,0.123,3251.2,3250.5,0.0096632]
[1642102979526,3.952315,3251.3,3250.5,0.0096632]
[1642102979721,0.123,3251.2,3250.5,0.0096632]
[1642102980322,1.13992386,3251.1,3250.5,0.0096632]
[1642102980528,0.132093,3251.2,3250.5,0.0096632]
[1642102980722,0.123,3251.2,3250.5,0.0096632]
[1642102981128,0.123,3251.2,3250.7,0.50844423]
[1642102981368,3.9358,3251.3,3250.7,0.50844423]
[1642102981369,0.00341054,3251.1,3250.7,0.50844423]
[1642102981770,0.00284211,3251.0,3250.7,0.50844423]
[1642102982268,0.123,3251.4,3250.9,4.79197969]
[1642102982467,0.123,3251.4,3250.9,5.39197969]
[1642102982666,0.00397896,3251.2,3250.9,5.39197969]
[1642102983071,0.00341054,3251.1,3251.0,10.65]
[1642102983272,0.00341054,3251.1,3251.0,12.63035]
[1642102983475,0.00341054,3251.1,3251.0,11.93035]
[1642102983674,0.00341054,3251.1,3251.0,13.23035]
[1642102984971,0.00341054,3251.1,3251.0,2.58035]
[1642102985224,0.00341054,3251.1,3251.0,0.6]
[1642102985424,0.01924254,3251.1,3251.0,0.3]
[1642102985624,0.01924254,3251.1,3250.7,0.3]
[1642102985825,0.01924254,3251.1,3250.4,0.3]
[1642102986124,0.009093,3251.3,3250.4,0.3]
[1642102986125,0.00284211,3251.0,3250.5,0.7688042]
[1642102986325,0.07584211,3251.7,3250.6,0.3]
[1642102986826,0.07584211,3251.7,3250.6,0.30227369]
[1642102987224,0.01422,3251.5,3250.8,0.76875]
[1642102987426,0.01422,3251.5,3250.6,1.83967029]
[1642102987427,1.34864746,3251.5,3250.6,0.30227369]
[1642102987625,0.021748,3250.8,3250.6,0.00227369]
[1642102987827,0.0022737,3251.4,3250.7,0.55807563]
[1642102988225,0.12470527,3251.3,3250.8,0.00113684]
[1642102988425,0.00170527,3251.3,3250.8,1.30507539]
[1642102988626,0.00113685,3251.2,3250.8,1.30507539]
[1642102989066,0.00170527,3251.3,3250.8,1.30507539]
[1642102989464,0.00113685,3251.2,3250.8,2.84255079]
[1642102989764,0.00397897,3251.7,3250.9,0.76871]
[1642102989964,0.123,3251.6,3250.9,0.76871]
[1642102990165,0.12641054,3251.6,3251.3,1.11478045]
[1642102990365,0.00284212,3251.5,3251.3,1.41478045]
[1642102990564,0.00284212,3251.5,3251.3,1.89793483]
[1642102990967,0.00284212,3251.5,3251.3,2.19793483]
[1642102991764,0.00284212,3251.5,3251.3,2.96655483]
[1642102991967,0.00284212,3251.5,3251.4,5.15]
[1642102993016,0.00284212,3251.5,3251.3,2.19793483]
[1642102993916,0.00284212,3251.5,3251.3,1.89793483]
[1642102994128,0.00284212,3251.5,3251.3,2.19793483]
[1642102995322,0.00284212,3251.5,3251.3,1.19793483]
[1642102996375,0.00284212,3251.5,3251.3,1.96656483]
[1642102997171,0.00284212,3251.5,3251.3,2.56656483]
[1642102997573,0.00284212,3251.5,3251.4,6.4]
[1642102998574,0.00284212,3251.5,3251.4,7.4]
[1642102998973,0.00284212,3251.5,3251.4,6.4]
[1642103000832,0.00284212,3251.5,3251.4,7.16864]
[1642103001031,0.00284212,3251.5,3251.4,6.4]
[1642103001431,0.00284212,3251.5,3251.3,1.19793483]
[1642103001626,0.016793,3251.4,3250.4,0.443]
[1642103001827,0.03871,3251.1,3250.6,0.76881]
[1642103002134,0.016793,3251.4,3250.7,0.00170527]
[1642103002135,0.028494,3250.9,3250.7,0.00170527]
[1642103002626,0.01079827,3251.3,3251.2,3.99914129]
[1642103003025,3.8782,3252.3,3251.2,4.59914129]
[1642103003026,0.009093,3251.5,3251.2,4.59914129]
[1642103003527,0.00284212,3251.5,3251.3,1.0]
[1642103003739,0.00284212,3251.5,3251.2,4.59914129]
[1642103004169,2.64309846,3251.4,3251.2,4.59914129]
[1642103004467,2.64309846,3251.4,3251.3,4.15]
[1642103004870,2.59537216,3251.4,3251.3,4.15]
[1642103005068,0.0022737,3251.4,3251.2,2.81781129]
[1642103005467,0.00170527,3251.3,3251.2,2.81781129]
[1642103005667,0.00170527,3251.3,3251.2,3.81781129]
[1642103006067,0.00170527,3251.3,3251.2,6.76781129]
[1642103006467,0.00170527,3251.3,3251.2,7.53647129]
[1642103007623,0.00170527,3251.3,3251.2,7.48647129]
[1642103008023,0.00170527,3251.3,3251.2,14.62947129]
[1642103008223,0.00170527,3251.3,3251.2,32.51947129]
[1642103010428,0.00170527,3251.3,3251.2,7.92947129]
[1642103011030,0.00170527,3251.3,3251.2,12.97947129]
[1642103012064,0.00170527,3251.3,3251.2,30.86947129]
[1642103012266,0.00170527,3251.3,3251.2,12.97947129]
[1642103013265,0.00170527,3251.3,3251.2,30.86947129]
[1642103013666,0.00170527,3251.3,3251.2,12.97947129]
[1642103014468,0.00170527,3251.3,3251.2,30.86947129]
[1642103015718,0.00170527,3251.3,3251.2,12.97947129]
[1642103016127,1.53573378,3252.8,3251.2,12.97947129]
[1642103016128,2.83327257,3253.4,3251.7,1.53697]
[1642103016324,2.79566721,3253.4,3253.3,0.44660656]
[1642103016521,2.67276721,3253.4,3253.3,4.99660656]
[1642103016718,2.67276721,3253.4,3253.3,5.16252283]
[1642103016919,2.67276721,3253.4,3253.3,5.15]
[1642103017118,2.67276721,3253.4,3253.3,6.15]
[1642103017317,2.67276721,3253.4,3253.3,6.91816]
[1642103017517,4.76504918,3253.8,3253.3,6.15]
[1642103017720,1.22345846,3253.8,3253.3,6.15]
[1642103017917,0.01364217,3253.7,3253.4,1.0]
[1642103018123,0.01364217,3253.7,3253.4,1.3]
[1642103018420,0.1229,3253.8,3253.5,6.3862975]
[1642103018617,0.0729,3253.8,3253.6,1.3]
[1642103018880,0.00113685,3253.8,3253.7,10.1001946]
[1642103019080,0.00113685,3253.8,3253.7,9.95005762]
[1642103019873,0.00113685,3253.8,3253.7,10.39305762]
[1642103020076,8.63364003,3254.4,3254.3,1.64126651]
[1642103020279,0.1229,3254.4,3254.3,1.64126651]
[1642103020473,5.094,3255.0,3254.3,1.64126651]
[1642103020474,0.1229,3254.6,3254.3,2.24126651]
[1642103020874,0.12744739,3254.6,3254.3,2.24126651]
[1642103021575,1.44766829,3254.5,3254.3,1.64126651]
[1642103021778,8.7282567,3254.4,3254.3,1.64126651]
[1642103021975,5.67631054,3254.4,3254.3,1.64126651]
[1642103022184,0.12631054,3254.4,3254.3,6.651e-05]
[1642103023617,0.07631054,3254.4,3254.3,6.651e-05]
[1642103025618,0.07631054,3254.4,3254.1,0.45397439]
[1642103025818,0.00341054,3254.4,3254.1,0.45397439]
[1642103026018,0.00284212,3254.3,3254.1,0.75397439]
[1642103026217,0.00284212,3254.3,3254.1,1.52200439]
[1642103026465,2.64122697,3254.4,3254.1,2.59003439]
[1642103026466,0.00227369,3254.2,3254.1,2.59003439]
[1642103026666,0.00227369,3254.2,3254.1,3.71293439]
[1642103026866,0.00227369,3254.2,3254.1,13.36293439]
[1642103027067,1.99227369,3254.7,3254.3,0.04742725]
[1642103027266,3.09265993,3254.7,3254.4,0.8907705]
[1642103027467,0.0022737,3254.6,3254.4,1.8357505]
[1642103027665,0.0022737,3254.6,3254.5,4.7729]
[1642103027866,1.99227369,3254.7,3254.5,4.65]
[1642103028070,1.99227369,3254.7,3254.6,1.0]
[1642103028267,1.99227369,3254.7,3254.4,3.2586505]
[1642103028465,1.99511581,3254.7,3254.4,3.2586505]
[1642103028666,1.99511581,3254.7,3254.5,0.54042536]
[1642103029869,1.99511581,3254.7,3254.5,2.07628286]
[1642103030147,2.64064255,3254.6,3254.5,3.07628286]
[1642103030332,1.99511581,3254.7,3254.5,4.41007286]
[1642103030530,1.99511581,3254.7,3254.6,9.81116038]
[1642103030736,1.99511581,3254.7,3254.6,10.2159]
[1642103030929,2.59110789,3255.5,3255.4,2.55]
[1642103031133,2.59110789,3255.5,3255.4,4.0854505]
[1642103031134,4.79256531,3255.5,3255.4,4.0854505]
[1642103031335,3.62577888,3255.5,3255.4,4.3854505]
[1642103032432,3.62577888,3255.5,3254.7,2.78741579]
[1642103032433,3.62577888,3255.5,3254.8,3.1939172]
[1642103032634,3.02098738,3255.8,3254.7,1.53558]
[1642103032835,0.00397897,3255.4,3254.7,0.76789]
[1642103033133,0.00341054,3255.3,3254.7,0.76789]
[1642103033337,0.00341054,3255.3,3254.8,2.08106549]
[1642103033533,2.98784789,3255.9,3254.9,0.443]
[1642103033534,0.00284212,3255.2,3254.9,0.443]
[1642103033734,1.29040485,3255.4,3255.0,9.48525]
[1642103033974,1.29040485,3255.4,3255.1,0.443]
[1642103034172,1.29040485,3255.4,3255.2,0.1228]
[1642103034375,1.29040485,3255.4,3255.1,1.0]
[1642103034573,1.29040485,3255.4,3255.1,1.0676252]
[1642103034776,1.29040485,3255.4,3255.3,3.36769]
[1642103034973,1.427732,3255.8,3255.3,3.36769]
[1642103034974,1.427732,3255.8,3255.3,3.87859481]
[1642103035174,1.42432146,3255.8,3255.4,1.0]
[1642103035374,1.42432146,3255.9,3255.5,0.1228]
[1642103035773,1.42830042,3255.9,3255.5,0.1228]
[1642103035975,1.42830042,3255.9,3255.6,0.76766]
[1642103036173,1.42830042,3255.9,3255.5,0.89049]
[1642103036375,1.42830042,3255.9,3255.6,0.3]
[1642103036775,0.00397896,3255.9,3255.0,1.65926785]
[1642103037176,1.34180858,3255.8,3255.0,1.65926785]
[1642103037619,0.00284212,3255.7,3255.0,1.65926785]
[1642103037821,0.00284212,3255.7,3255.4,0.44872361]
[1642103038024,0.00227369,3255.6,3255.4,0.74872361]
[1642103038319,0.00170527,3255.5,3255.4,1.04872361]
[1642103038719,0.00170527,3255.5,3255.4,8.89872361]
[1642103039218,0.00170527,3255.5,3255.4,13.73679221]
[1642103039818,0.00170527,3255.5,3255.4,15.53679221]
[1642103040819,0.00170527,3255.5,3255.4,15.65959221]
[1642103041766,0.00170527,3255.5,3255.4,16.10259221]
[1642103042167,0.00170527,3255.5,3255.4,14.30259221]
[1642103042770,0.00170527,3255.5,3255.4,16.10259221]
[1642103043171,0.00170527,3255.5,3255.4,14.50061541]
[1642103044173,0.00170527,3255.5,3255.4,6.0038686]
[1642103044374,0.00170527,3255.5,3255.3,0.1980232]
[1642103044773,0.00113685,3255.4,3255.3,0.1980232]
[1642103044979,1.25959057,3255.4,3255.3,0.1980232]
[1642103045622,1.25959057,3255.4,3255.3,6.7]
[1642103045826,0.00113685,3255.4,3255.3,6.7]
[1642103046026,1.54712146,3256.2,3255.0,0.76884685]
[1642103046027,1.49825831,3256.2,3255.4,6.3]
[1642103046227,1.42432146,3256.2,3255.4,6.309511]
[1642103046424,0.00397896,3256.1,3255.5,0.7676484]
[1642103046625,0.00397896,3256.1,3255.5,2.3334484]
[1642103046823,0.00341054,3256.0,3255.7,0.76749]
[1642103047024,1.47059377,3256.0,3255.7,2.60264]
[1642103047325,0.00284211,3255.9,3255.8,5.28831082]
[1642103047523,0.00284211,3255.9,3255.8,1.53831082]
[1642103047925,0.00284211,3255.9,3255.8,0.53831082]
[1642103048325,1.42002534,3256.0,3255.8,0.53831082]
[1642103048727,1.42002534,3256.0,3255.7,0.76765]
[1642103049477,1.42002534,3256.0,3255.7,1.53524]
[1642103049876,1.42002534,3256.0,3255.9,4.71492093]
[1642103050078,1.42002534,3256.0,3255.9,6.31492093]
[1642103050478,0.26099997,3256.7,3255.9,6.31492093]
[1642103050677,0.13819997,3256.7,3256.1,0.76754]
[1642103050879,0.00397897,3256.6,3256.1,0.76754]
[1642103051079,0.12677897,3256.6,3256.2,0.3]
[1642103051281,0.00341054,3256.5,3255.9,1.53503]
[1642103051479,0.00341054,3256.5,3256.0,0.3]
[1642103051678,1.43114463,3256.4,3255.9,0.3]
[1642103051878,1.30834463,3256.4,3255.8,0.3]
[1642103052078,0.0022737,3256.3,3255.8,0.3]
[1642103052480,1.42602673,3256.2,3255.7,0.3]
[1642103052715,1.42602673,3256.2,3256.1,0.012486]
[1642103052927,1.42602673,3256.2,3255.8,0.76762]
[1642103052928,1.21109869,3255.9,3255.8,0.76762]
[1642103053120,1.42432146,3256.2,3255.8,0.76762]
[1642103053121,1.42432146,3256.2,3255.9,0.48903427]
[1642103053320,1.42432146,3256.2,3255.9,2.02408427]
[1642103053321,0.00113685,3256.1,3255.9,2.02408427]
[1642103054121,0.00113685,3256.1,3255.9,2.79161427]
[1642103054122,1.38390471,3256.1,3255.9,2.79161427]
[1642103054324,1.38390471,3256.1,3256.0,6.630019]
[1642103054325,0.00113685,3256.1,3256.0,6.630019]
[1642103054522,0.00113685,3256.1,3256.0,6.930019]
[1642103056370,0.00113685,3256.1,3256.0,7.052819]
[1642103056971,0.00113685,3256.1,3256.0,7.04034]
[1642103057372,0.00113685,3256.1,3256.0,6.2728]
[1642103058070,0.00113685,3256.1,3256.0,6.15]
[1642103058471,0.00113685,3256.1,3256.0,10.41752]
[1642103058671,0.00113685,3256.1,3256.0,7.47543524]
[1642103059371,0.00113685,3256.1,3256.0,7.99299144]
[1642103059572,0.00113685,3256.1,3256.0,12.79299144]
[1642103060227,0.00113685,3256.1,3256.0,12.91579144]
[1642103060424,0.00113685,3256.1,3256.0,14.46654844]
[1642103060823,2.63968567,3256.3,3256.1,9.6173598]
[1642103061025,2.63968567,3256.3,3256.2,9.7658]
[1642103061224,2.63968567,3256.3,3256.2,10.7658]
[1642103061425,2.64082252,3256.3,3256.2,10.7658]
[1642103062024,2.13544209,3256.9,3256.3,9.65]
[1642103062025,2.63968567,3256.9,3256.3,9.65]
[1642103062225,2.63968567,3256.9,3256.7,0.76727]
[1642103062425,2.63968567,3256.9,3256.8,9.19359444]
[1642103062628,2.63968567,3256.9,3256.8,10.19359444]
[1642103062826,2.64309621,3256.9,3256.8,10.19359444]
[1642103063032,0.6030962,3256.9,3256.8,10.19359444]
[1642103063227,0.6030962,3256.9,3256.8,11.72804784]
[1642103063425,0.6030962,3256.9,3256.8,12.17104784]
[1642103063876,2.84604362,3257.5,3256.8,12.17104784]
[1642103063877,2.13544209,3257.8,3257.0,9.65]
[1642103064073,2.13544209,3257.8,3257.3,3.06829]
[1642103064273,2.13544209,3257.8,3257.4,0.443]
[1642103064477,2.13544209,3257.8,3257.4,2.51019]
[1642103064878,2.13544209,3257.8,3257.4,2.54922659]
[1642103065074,2.13544209,3257.8,3257.6,2.12718186]
[1642103065275,2.13544209,3257.8,3257.7,10.5157]
[1642103065476,2.13544209,3257.8,3257.7,12.04967]
[1642103065674,6.26235004,3258.0,3257.8,9.65]
[1642103065877,6.26235004,3258.0,3257.9,8.720484]
[1642103066074,2.1608075,3258.2,3257.9,10.143184]
[1642103066276,0.00113685,3258.0,3257.9,10.910164]
[1642103066677,0.00113685,3258.0,3257.9,11.7516802]
[1642103066877,2.1608075,3258.2,3258.0,9.65]
[1642103067083,2.1608075,3258.2,3258.1,12.07672305]
[1642103067277,2.84604362,3258.5,3258.1,12.53392685]
[1642103067480,0.00113684,3258.2,3258.1,15.57397925]
[1642103067721,0.00113684,3258.2,3258.1,15.55797925]
[1642103067921,1.38939072,3258.6,3258.4,1.5336087]
[1642103068124,1.38939072,3258.6,3258.5,6.85986]
[1642103068320,1.38939072,3258.6,3258.5,6.870085]
[1642103068520,0.00341054,3258.8,3258.5,6.870085]
[1642103068720,0.00341054,3258.8,3258.6,0.76683]
[1642103068921,2.84604362,3259.1,3258.7,6.143]
[1642103069121,2.84604362,3259.1,3258.9,0.76679]
[1642103069320,2.84604362,3259.1,3258.9,6.21679]
[1642103069321,0.00454739,3259.0,3258.9,6.21679]
[1642103069521,0.00454739,3259.0,3258.9,6.51679]
[1642103069727,1.1317,3259.8,3259.0,9.65]
[1642103069922,3.41630642,3259.7,3259.1,0.443]
[1642103070123,0.00341054,3259.6,3259.1,0.443]
[1642103070523,0.00284212,3259.5,3259.1,0.443]
[1642103070921,0.00227369,3259.4,3259.1,0.443]
[1642103071123,0.00227369,3259.4,3259.3,10.4]
[1642103071378,1.22866949,3259.5,3259.3,11.1430128]
[1642103071576,1.22866949,3259.5,3259.3,11.9096728]
[1642103071776,1.17866949,3259.5,3259.3,11.9096728]
[1642103073178,0.00454739,3259.8,3259.5,0.76656]
[1642103073378,0.00454739,3259.8,3259.7,7.04420826]
[1642103073578,0.9841346,3259.9,3259.7,7.34420826]
[1642103073779,0.8341346,3259.9,3259.7,7.34420826]
[1642103074378,2.32252769,3259.9,3259.8,8.593]
[1642103074779,0.83925041,3259.9,3259.8,8.593]
[1642103075228,0.83925041,3259.9,3259.8,26.483]
[1642103075425,2.17911321,3260.7,3260.1,0.76646]
[1642103075623,2.17911321,3260.7,3260.5,0.01574]
[1642103075822,3.6264,3261.2,3260.5,0.01574]
[1642103075823,2.17911321,3260.8,3260.5,0.01574]
[1642103076023,1.27775435,3260.7,3260.5,0.01574]
[1642103076623,1.27775435,3260.7,3260.5,0.31574]
[1642103076822,1.27775435,3260.7,3260.6,5.26646]
[1642103077122,1.28230174,3260.7,3260.6,5.26646]
[1642103077322,1.28230174,3260.7,3260.6,5.56646]
[1642103077721,1.28230174,3260.7,3260.6,1.06646]
[1642103077922,1.28230174,3260.7,3260.6,0.3]
[1642103078124,1.23230174,3260.7,3260.6,0.3]
[1642103078323,1.23230174,3260.7,3259.9,0.13819997]
[1642103078722,0.00397897,3260.6,3259.9,0.13819997]
[1642103079171,0.00341054,3260.5,3259.9,0.69078669]
[1642103079369,0.00341054,3260.5,3259.9,2.52397669]
[1642103079571,0.00284212,3260.4,3260.2,0.76663]
[1642103079972,0.00227369,3260.3,3260.2,1.06663]
[1642103083123,0.00227369,3260.3,3260.2,1.36663]
[1642103083524,0.00227369,3260.3,3260.1,0.76663]
[1642103083724,0.00227369,3260.3,3259.6,1.53334]
[1642103083928,0.02430527,3260.2,3259.3,1.985653]
[1642103084124,0.02430527,3260.2,3259.7,0.00113685]
[1642103084324,0.00113685,3260.1,3259.7,0.00113685]
[1642103084524,1.28413862,3260.0,3259.6,0.00170527]
[1642103084928,1.28413862,3260.0,3259.6,0.30170527]
[1642103085124,1.28413862,3260.0,3259.6,0.00170527]
[1642103085325,0.1227,3259.9,3259.6,0.00170527]
[1642103085526,0.1227,3259.9,3259.5,0.00227369]
[1642103085725,0.1227,3259.9,3259.4,0.00284212]
[1642103086378,2.75922129,3259.9,3259.3,0.00341054]
[1642103086579,2.75922129,3259.9,3259.4,0.00989]
[1642103086580,2.63652129,3259.9,3259.4,0.00989]
[1642103086978,2.63652129,3259.9,3259.5,0.00227369]
[1642103087177,2.63556429,3259.9,3259.5,0.00227369]
[1642103087377,2.63556429,3259.9,3259.6,0.76677]
[1642103087578,2.63556429,3259.9,3259.6,1.06677]
[1642103087778,2.63556429,3259.9,3259.6,1.36677]
[1642103089984,2.63556429,3259.9,3259.6,0.3]
[1642103090423,2.63556429,3259.9,3259.5,1.53569369]
[1642103090823,2.63556429,3259.9,3259.6,0.00170527]
[1642103091022,2.63556429,3259.9,3259.6,1.83515837]
[1642103091229,2.63556429,3259.9,3259.7,0.76668]
[1642103092022,2.63556429,3259.9,3259.6,1.36848527]
[1642103093223,2.63556429,3259.9,3259.7,0.88941]
[1642103093529,2.63556429,3259.9,3259.7,1.18941]
[1642103094374,2.63556429,3259.9,3259.7,2.7226]
[1642103094771,2.63556429,3259.9,3259.8,0.3]
[1642103094972,1.28413862,3260.0,3259.8,0.3]
[1642103095277,1.28413862,3260.0,3259.9,0.76668]
[1642103095472,1.28413862,3260.0,3259.9,1.06668]
[1642103096074,1.28413862,3260.0,3259.9,6.76668]
[1642103096670,1.28413862,3260.0,3259.9,6.88938]
[1642103097272,1.28413862,3260.0,3259.9,1.18938]
[1642103097729,5.0694,3260.4,3259.9,1.06668]
[1642103097927,0.00397897,3260.6,3260.2,0.76652]
[1642103098129,0.00227369,3260.3,3260.2,1.31012]
[1642103098327,1.45585439,3260.9,3260.2,1.31012]
[1642103098328,0.00341054,3260.5,3260.4,9.662987]
[1642103098527,1.45585439,3260.8,3260.6,0.014078]
[1642103098928,1.44599569,3260.7,3260.6,0.014078]
[1642103099127,1.44599569,3260.7,3260.6,4.797168]
[1642103099332,1.44599569,3260.7,3260.6,5.08309]
[1642103099930,1.44599569,3260.7,3260.6,1.83309]
[1642103100129,1.44599569,3260.7,3260.6,0.3]
[1642103100337,1.44599569,3260.7,3260.0,0.58154576]
[1642103100532,1.56859569,3260.7,3260.0,0.58154576]
[1642103100731,0.00397897,3260.6,3260.0,0.58154576]
[1642103101132,0.00341054,3260.5,3259.8,0.59063876]
[1642103101574,0.00284212,3260.4,3259.8,0.59063876]
[1642103101773,0.00284212,3260.4,3260.2,1.53333]
[1642103101973,1.4414483,3260.7,3260.2,1.53333]
[1642103101974,0.00227369,3260.3,3260.2,1.53333]
[1642103102373,0.00227369,3260.3,3259.8,1.59063876]
[1642103102574,0.00227369,3260.3,3259.8,1.009093]
[1642103102774,0.00170527,3260.2,3259.8,1.53351]
[1642103102973,0.00170527,3260.2,3259.6,0.00170527]
[1642103103173,0.12383685,3260.1,3259.7,0.76685]
[1642103103376,1.22901392,3260.0,3259.7,0.76685]
[1642103103775,1.22901392,3260.0,3259.5,1.53589369]
[1642103104174,1.22901392,3260.0,3259.6,0.00170527]
[1642103104374,1.22901392,3260.0,3259.7,0.76685]
[1642103105162,1.22901392,3260.0,3259.6,0.00170527]
[1642103105350,0.1227,3259.9,3259.6,0.00170527]
[1642103105548,0.1227,3259.9,3259.7,0.76684]
[1642103105747,1.22901392,3260.0,3259.7,0.76684]
[1642103106848,1.22901392,3260.0,3259.7,1.06684]
[1642103107048,1.22901392,3260.0,3259.7,0.3]
[1642103107249,0.1227,3259.9,3259.6,0.00170527]
[1642103107449,0.5657,3259.9,3259.6,0.00170527]
[1642103107649,0.01290445,3259.8,3259.5,0.00227369]
[1642103107851,0.1227,3259.7,3259.5,0.00227369]
[1642103109081,2.64989439,3259.8,3259.5,0.00227369]
[1642103109082,2.77259439,3259.8,3259.5,0.00227369]
[1642103109472,2.77259439,3259.8,3259.6,1.69423976]
[1642103109676,2.87999518,3259.7,3259.6,1.69423976]
[1642103110072,2.87999518,3259.7,3259.6,1.69594503]
[1642103110471,0.83440445,3259.8,3259.6,1.69594503]
[1642103110874,0.01290445,3259.8,3259.6,1.69594503]
[1642103111377,0.1227,3259.9,3259.6,1.69594503]
[1642103111578,1.35171392,3260.0,3259.6,1.69594503]
[1642103111774,1.22901392,3260.0,3259.6,2.29594503]
[1642103111974,1.22901392,3260.0,3259.7,0.55708569]
[1642103112176,1.45585439,3260.1,3259.8,0.1227]
[1642103112375,1.45585439,3260.3,3259.8,1.6670465]
[1642103112641,1.45585439,3260.3,3260.1,0.013756]
[1642103112935,1.45585439,3260.3,3260.1,9.663756]
[1642103112936,0.00170527,3260.2,3260.1,9.663756]
[1642103113137,0.00170527,3260.2,3260.1,12.06003548]
[1642103113336,0.00170527,3260.2,3260.1,12.94906548]
[1642103113539,0.98785966,3260.3,3260.1,13.94906548]
[1642103113736,0.98785966,3260.3,3260.2,7.5226]
[1642103113936,3.41630642,3260.5,3260.2,7.9656]
[1642103114141,0.99240566,3261.5,3260.2,7.9656]
[1642103114142,3.747,3261.3,3260.2,8.28796214]
[1642103114337,0.00113685,3260.4,3260.3,2.2996041]
[1642103114637,0.00113685,3260.4,3260.3,2.25567]
[1642103115440,0.00113685,3260.4,3260.3,2.57803214]
[1642103115740,0.00113685,3260.4,3260.3,3.57803214]
[1642103115938,0.00113685,3260.4,3260.3,9.82803214]
[1642103116382,0.00113685,3260.4,3260.3,9.50567]
[1642103119780,0.00113685,3260.4,3260.3,11.19990976]
[1642103121830,0.00113685,3260.4,3260.3,11.5595146]
[1642103122027,0.00113685,3260.4,3260.3,3.7095146]
[1642103122228,0.00113685,3260.4,3260.3,2.0538446]
[1642103123429,0.00113685,3260.4,3260.3,0.3411446]
[1642103123630,1.21773685,3260.4,3260.3,0.3411446]
[1642103124077,1.21773685,3260.4,3260.3,0.2951446]
[1642103125278,1.21773685,3260.4,3259.8,0.009093]
[1642103125479,0.1226,3260.3,3259.8,0.009093]
[1642103125680,0.1226,3260.3,3259.9,0.00170527]
[1642103125880,2.5106171,3260.2,3259.9,0.00170527]
[1642103126081,0.1226,3260.1,3259.6,0.00341054]
[1642103126379,1.54669276,3260.0,3259.6,0.00341054]
[1642103126778,1.54669276,3260.0,3259.5,0.00397896]
[1642103126981,0.1227,3259.9,3259.5,0.00397896]
[1642103129334,0.00113685,3260.4,3259.6,0.06046572]
[1642103129335,0.1227,3260.3,3259.6,0.06046572]
[1642103129531,0.00113685,3260.4,3259.7,0.011721]
[1642103129724,0.00113685,3260.4,3259.7,0.01456312]
[1642103129925,0.00113685,3260.4,3259.8,0.00227369]
[1642103130325,0.00113685,3260.4,3259.9,0.76672]
[1642103130326,1.56364948,3260.0,3259.9,0.76672]
[1642103130827,1.56364948,3260.0,3259.9,0.76842527]
[1642103131226,1.56364948,3260.0,3259.9,0.00170527]
[1642103131686,1.56364948,3260.0,3259.8,0.00227369]
[1642103131886,1.56364948,3260.0,3259.9,0.00170527]
[1642103132089,1.56364948,3260.0,3259.8,0.00227369]
[1642103132391,2.34354948,3260.0,3259.8,0.00227369]
[1642103132586,2.23254948,3260.0,3259.8,0.00227369]
[1642103132987,2.23254948,3260.0,3259.7,0.00284212]
[1642103133387,2.99951948,3260.0,3259.6,0.00341054]
[1642103133590,2.99951948,3260.0,3259.5,0.01307196]
[1642103133789,2.99951948,3260.0,3259.6,0.00341054]
[1642103135322,2.23254948,3260.0,3259.6,0.00341054]
[1642103135522,1.45264948,3260.0,3259.6,0.01362254]
[1642103135922,1.45264948,3260.0,3259.7,0.00284212]
[1642103136124,1.45264948,3260.0,3259.8,0.012615]
[1642103136326,0.00113685,3260.4,3259.9,0.52034211]
[1642103136623,0.00113685,3260.4,3260.3,0.02268]
[1642103136823,0.00113685,3260.4,3260.1,0.441525]
[1642103137231,0.00113685,3260.4,3260.1,0.018925]
[1642103137522,1.24623551,3260.3,3260.1,0.018925]
[1642103137722,1.24623551,3260.3,3260.0,0.01929685]
[1642103137926,1.24623551,3260.3,3260.0,0.00113685]
[1642103139087,1.24623551,3260.3,3260.0,0.01164485]
[1642103139893,0.00113685,3260.4,3260.1,0.016535]
[1642103140890,0.00113685,3260.4,3260.3,4.15]
[1642103141087,0.00113685,3260.4,3260.3,4.45]
[1642103142644,0.00113685,3260.4,3260.3,4.15]
[1642103143032,0.00113685,3260.4,3260.2,0.009093]
[1642103143233,0.00113685,3260.4,3260.1,1.65579]
[1642103143434,1.35435181,3260.3,3260.1,1.53319]
[1642103144734,0.8082486,3260.7,3260.1,1.53319]
[1642103144935,0.8082486,3260.7,3260.1,1.54436]
[1642103145137,0.0022737,3260.6,3260.1,1.54436]
[1642103145534,0.00170527,3260.5,3260.1,1.54436]
[1642103145735,0.00170527,3260.5,3260.1,1.84436]
[1642103145935,0.00113685,3260.4,3260.3,2.2576538]
[1642103146137,0.00113685,3260.4,3260.3,2.8822888]
[1642103146383,0.00113685,3260.4,3260.3,3.0048888]
[1642103146583,0.00113685,3260.4,3260.3,13.6548888]
[1642103146784,0.00113685,3260.4,3260.3,14.0978888]
[1642103147186,0.00113685,3260.4,3260.3,12.606845]
[1642103147384,0.00113685,3260.4,3260.3,2.93221]
[1642103147585,0.00113685,3260.4,3260.3,9.98221]
[1642103147784,0.00113685,3260.4,3260.3,9.994191]
[1642103148385,0.00113685,3260.4,3260.3,11.45626622]
[1642103149083,0.00113685,3260.4,3260.3,11.15626622]
[1642103149284,0.00113685,3260.4,3260.3,8.52600793]
[1642103149485,0.00113685,3260.4,3260.3,8.51402693]
[1642103149686,0.00113685,3260.4,3260.3,9.82838193]
[1642103150130,0.00113685,3260.4,3260.3,10.12838193]
[1642103150725,0.00113685,3260.4,3260.3,9.996565]
[1642103150936,0.1226,3261.3,3261.1,0.3]
[1642103151128,0.1226,3261.3,3261.0,0.05846005]
[1642103151325,0.1226,3261.4,3261.0,0.05846005]
[1642103151525,0.1226,3261.4,3260.9,0.5437743]
[1642103151526,0.1226,3261.4,3260.9,0.009093]
[1642103151724,0.12828423,3261.4,3260.9,0.009093]
[1642103152127,1.14740372,3261.3,3260.9,0.009093]
[1642103152328,0.1226,3261.2,3260.9,0.009093]
[1642103152527,0.12714739,3261.2,3260.6,2.1422552]
[1642103152727,0.00397896,3261.1,3260.7,0.7666281]
[1642103153227,0.00341054,3261.0,3260.7,0.7666281]
[1642103153528,0.1226,3261.2,3260.7,0.7666281]
[1642103153529,0.00284212,3260.9,3260.7,0.7666281]
[1642103153726,0.00284212,3260.9,3260.7,0.7795951]